[Event "Turkish Cup 2022"]
[Site "Sakarya"]
[Date "2022.03.30"]
[Round "9.20"]
[White "Tahaoglu, Erkin"]
[Black "Caputcuoglu, Zeki Berke"]
[Result "0-1"]
[ECO "C60"]
[WhiteElo "1694"]
[BlackElo "2095"]
[Annotator "NA"]
[PlyCount "68"]
[EventDate "2022.03.25"]
[EventType "swiss"]
[EventCountry "TUR"]
[SourceTitle "playchess.com"]
[Source "ChessBase"]
[SourceQuality "1"]
[TimeControl "5400+30"]

1. e4 {[%emt 0:01:00]} e5 {[%emt 0:09:00]} 2. Nf3 {[%emt 0:00:30]} Nc6 {[%emt 0:00:30]} 3. Bb5 {[%emt 0:00:30]} a6 {[%emt 0:00:30]} 4. Ba4 {[%emt 0:00:30]} d6 {[%emt 0:00:30]} 5. O-O {[%emt 0:00:30]} Bd7 {[%emt 0:01:30]} 6. c3 {[%emt 0:00:30]} g6 {[%emt 0:00:00]} 7. d4 {[%emt 0:01:30]} Bg7 {[%emt 0:00:00]} 8. h3 {[%emt 0:01:30]} Nf6 {[%emt 0:01:30]} 9. Re1 {[%emt 0:03:30]} O-O {[%emt 0:00:30]} 10. Nbd2 {[%emt 0:04:30]} Nh5 {[%emt 0:17:30]} 11. Bxc6 {[%emt 0:03:30]} Bxc6 {[%emt 0:02:30]} 12. Nc4 {[%emt 0:01:30]} Bb5 {[%emt 0:12:30]} 13. Qb3 {[%emt 0:03:30]} exd4 {[%emt 0:05:30]} 14. cxd4 {[%emt 0:11:30]} d5 {[%emt 0:02:30]} 15. Nce5 {[%emt 0:00:30]} dxe4 {[%emt 0:02:30]} 16. Ng5 {[%emt 0:03:30]} Qxd4 {[%emt 0:12:30]} 17. Ngxf7 {[%emt 0:01:30]} Bc4 {[%emt 0:00:30]} 18. Nxc4 {[%emt 0:01:30]} Rxf7 {[%emt 0:00:30]} 19. Be3 {[%emt 0:00:30]} Qd5 {[%emt 0:00:30]} 20. Rad1 {[%emt 0:00:30]} Qb5 {[%emt 0:00:30]} 21. Qc2 {[%emt 0:01:30]} Re8 {[%emt 0:01:30]} 22. a4 {[%emt 0:03:30]} Qc6 {[%emt 0:01:30]} 23. Qb3 {[%emt 0:00:30]} Qe6 {[%emt 0:02:30]} 24. Rd2 {[%emt 0:02:30]} Nf4 {[%emt 0:02:30]} 25. Bxf4 {[%emt 0:03:30]} Rxf4 {[%emt 0:00:00]} 26. Rde2 {[%emt 0:00:30]} Bd4 {[%emt 0:02:00]} 27. g3 {[%emt 0:03:30]} Qxh3 {[%emt 0:06:14]} 28. Nd2+ {[%emt 0:02:30]} Rf7 {[%emt 0:00:14]} 29. Nf1 {[%emt 0:07:30]} Re5 {[%emt 0:01:03]} 30. Qxb7 {[%emt 0:03:30]} Rf3 {[%emt 0:03:32]} 31. Qb8+ {[%emt 0:04:30]} Kg7 {[%emt 0:00:07]} 32. Qxc7+ {[%emt 0:01:30]} Kh6 {[%emt 0:00:08]} 33. Qc1+ {[%emt 0:02:30]} Rg5 {[%emt 0:02:38]} 34. Rd1 {[%emt 0:02:30]} Rfxg3+ {[%emt 0:00:59]} 0-1

[Event "Turkish Cup 2022"]
[Site "Sakarya"]
[Date "2022.03.30"]
[Round "9.21"]
[White "Kul, Ozdemir Efe"]
[Black "Cil, Batuhan"]
[Result "1-0"]
[ECO "A05"]
[WhiteElo "2042"]
[BlackElo "1737"]
[Annotator "NA"]
[PlyCount "123"]
[EventDate "2022.03.25"]
[EventType "swiss"]
[EventCountry "TUR"]
[SourceTitle "playchess.com"]
[Source "ChessBase"]
[SourceQuality "1"]
[TimeControl "5400+30"]

1. g3 {[%emt 0:03:00]} d5 {[%emt 0:01:00]} 2. Nf3 {[%emt 0:00:30]} Nf6 {[%emt 0:00:30]} 3. Bg2 {[%emt 0:00:30]} g6 {[%emt 0:00:30]} 4. O-O {[%emt 0:00:30]} Bg7 {[%emt 0:00:30]} 5. d3 {[%emt 0:00:00]} O-O {[%emt 0:02:30]} 6. a3 {[%emt 0:00:00]} c5 {[%emt 0:00:30]} 7. Nc3 {[%emt 0:00:30]} Nc6 {[%emt 0:00:30]} 8. Rb1 {[%emt 0:00:30]} e6 {[%emt 0:18:30]} 9. Bg5 {[%emt 0:05:30]} h6 {[%emt 0:01:30]} 10. Bd2 {[%emt 0:04:30]} Qe7 {[%emt 0:06:30]} 11. e4 {[%emt 0:00:30]} d4 {[%emt 0:01:30]} 12. Ne2 {[%emt 0:00:30]} e5 {[%emt 0:01:30]} 13. h3 {[%emt 0:02:30]} a5 {[%emt 0:10:30]} 14. Ne1 {[%emt 0:00:30]} b5 {[%emt 0:00:30]} 15. f4 {[%emt 0:01:30]} Bd7 {[%emt 0:11:30]} 16. Nf3 {[%emt 0:01:30]} Nh5 {[%emt 0:06:30]} 17. fxe5 {[%emt 0:03:30]} Nxe5 {[%emt 0:00:30]} 18. Nxe5 {[%emt 0:07:30]} Qxe5 {[%emt 0:00:00]} 19. g4 {[%emt 0:00:30]} Ng3 {[%emt 0:01:00]} 20. Nxg3 {[%emt 0:05:30]} Qxg3 {[%emt 0:00:30]} 21. Bf4 {[%emt 0:01:30]} Qh4 {[%emt 0:00:00]} 22. Qf3 {[%emt 0:02:30]} Qe7 {[%emt 0:08:00]} 23. Qg3 {[%emt 0:00:30]} Ra6 {[%emt 0:00:30]} 24. h4 {[%emt 0:02:30]} Re8 {[%emt 0:05:30]} 25. g5 {[%emt 0:03:30]} h5 {[%emt 0:00:30]} 26. Rf2 {[%emt 0:01:30]} c4 {[%emt 0:01:30]} 27. Rbf1 {[%emt 0:01:30]} c3 {[%emt 0:03:48]} 28. bxc3 {[%emt 0:10:30]} dxc3 {[%emt 0:01:49]} 29. Be3 {[%emt 0:00:30]} Be5 {[%emt 0:00:32]} 30. Qf3 {[%emt 0:01:30]} Rf8 {[%emt 0:03:32]} 31. Bh3 {[%emt 0:02:30]} Bxh3 {[%emt 0:07:51]} 32. Qxh3 {[%emt 0:00:30]} Rd6 {[%emt 0:01:17]} 33. Rb1 {[%emt 0:06:30]} b4 {[%emt 0:02:59]} 34. axb4 {[%emt 0:01:30]} axb4 {[%emt 0:00:01]} 35. Rff1 {[%emt 0:04:30]} Rdd8 {[%emt 0:00:31]} 36. Qf3 {[%emt 0:02:30]} Rb8 {[%emt 0:00:44]} 37. d4 {[%emt 0:01:30]} Bc7 {[%emt 0:00:30]} 38. e5 {[%emt 0:01:30]} Qe6 {[%emt 0:00:31]} 39. Rb3 {[%emt 0:00:30]} Qc4 {[%emt 0:01:39]} 40. Rfb1 {[%emt 0:01:30]} Rfd8 {[%emt 0:00:38]} 41. Rd1 {[%emt 0:02:52]} Bb6 {[%emt 0:01:26]} 42. Qf1 {[%emt 0:01:54]} Qe6 {[%emt 0:00:39]} 43. Rxb4 {[%emt 0:04:21]} Qg4+ {[%emt 0:00:30]} 44. Kh2 {[%emt 0:00:30]} Qxh4+ {[%emt 0:00:30]} 45. Qh3 {[%emt 0:00:30]} Qe4 {[%emt 0:00:30]} 46. Rd3 {[%emt 0:00:00]} Ra8 {[%emt 0:00:30]} 47. Rxb6 {[%emt 0:00:00]} Ra1 {[%emt 0:00:22]} 48. Bg1 {[%emt 0:03:41]} Qf4+ {[%emt 0:00:33]} 49. Qg3 {[%emt 0:00:38]} Qd2+ {[%emt 0:00:25]} 50. Bf2 {[%emt 0:01:45]} Qxc2 {[%emt 0:00:31]} 51. Rxc3 {[%emt 0:00:35]} Qe4 {[%emt 0:00:49]} 52. Qf3 {[%emt 0:00:20]} Qxf3 {[%emt 0:00:22]} 53. Rxf3 {[%emt 0:00:50]} Ra2 {[%emt 0:00:30]} 54. Kh3 {[%emt 0:00:00]} Ra7 {[%emt 0:00:00]} 55. Rbf6 {[%emt 0:00:20]} Re8 {[%emt 0:00:13]} 56. Kg3 {[%emt 0:01:20]} Kg7 {[%emt 0:00:43]} 57. Kf4 {[%emt 0:00:00]} Ra4 {[%emt 0:00:07]} 58. Ke4 {[%emt 0:00:55]} Re7 {[%emt 0:00:08]} 59. Rd6 {[%emt 0:00:54]} Ra5 {[%emt 0:00:18]} 60. d5 {[%emt 0:00:13]} Ra4+ {[%emt 0:00:02]} 61. Bd4 {[%emt 0:00:25]} Rb7 {[%emt 0:00:15]} 62. e6+ {[%emt 0:00:00]} 1-0

[Event "Turkish Cup 2022"]
[Site "Sakarya"]
[Date "2022.03.30"]
[Round "9.22"]
[White "Demirag, Batuhan"]
[Black "Lale, Omer Faruk"]
[Result "1-0"]
[ECO "A34"]
[WhiteElo "1923"]
[BlackElo "1771"]
[Annotator "NA"]
[PlyCount "127"]
[EventDate "2022.03.25"]
[EventType "swiss"]
[EventCountry "TUR"]
[SourceTitle "playchess.com"]
[Source "ChessBase"]
[SourceQuality "1"]
[TimeControl "5400+30"]

1. Nf3 {[%emt 0:01:00]} c5 {[%emt 0:01:00]} 2. c4 {[%emt 0:00:00]} Nf6 {[%emt 0:01:30]} 3. Nc3 {[%emt 0:00:00]} Nc6 {[%emt 0:00:30]} 4. g3 {[%emt 0:00:30]} e5 {[%emt 0:10:30]} 5. Bg2 {[%emt 0:00:00]} d6 {[%emt 0:01:30]} 6. d3 {[%emt 0:02:00]} Be7 {[%emt 0:01:30]} 7. O-O {[%emt 0:00:30]} Bd7 {[%emt 0:01:30]} 8. Bg5 {[%emt 0:01:30]} Nd4 {[%emt 0:06:30]} 9. Bxf6 {[%emt 0:06:30]} Bxf6 {[%emt 0:03:30]} 10. Ne1 {[%emt 0:07:30]} h5 {[%emt 0:01:30]} 11. e3 {[%emt 0:01:30]} Ne6 {[%emt 0:01:30]} 12. Ne4 {[%emt 0:05:30]} Be7 {[%emt 0:04:30]} 13. Nc2 {[%emt 0:02:30]} h4 {[%emt 0:14:30]} 14. d4 {[%emt 0:00:30]} f5 {[%emt 0:01:30]} 15. Nc3 {[%emt 0:04:30]} f4 {[%emt 0:06:30]} 16. exf4 {[%emt 0:00:30]} cxd4 {[%emt 0:00:30]} 17. Nd5 {[%emt 0:00:30]} O-O {[%emt 0:06:30]} 18. fxe5 {[%emt 0:01:30]} dxe5 {[%emt 0:00:30]} 19. Qh5 {[%emt 0:01:30]} Bd6 {[%emt 0:06:30]} 20. Rae1 {[%emt 0:06:30]} Qg5 {[%emt 0:00:30]} 21. Qxg5 {[%emt 0:02:30]} Nxg5 {[%emt 0:00:30]} 22. f4 {[%emt 0:00:30]} exf4 {[%emt 0:01:30]} 23. gxf4 {[%emt 0:00:00]} Nh3+ {[%emt 0:00:30]} 24. Kh1 {[%emt 0:00:00]} d3 {[%emt 0:01:30]} 25. Nd4 {[%emt 0:01:30]} Bc5 {[%emt 0:02:30]} 26. Ne7+ {[%emt 0:01:30]} Kf7 {[%emt 0:02:30]} 27. Nef5 {[%emt 0:02:30]} d2 {[%emt 0:01:30]} 28. Rd1 {[%emt 0:03:30]} Bxf5 {[%emt 0:01:30]} 29. Nxf5 {[%emt 0:00:00]} Nf2+ {[%emt 0:00:30]} 30. Rxf2 {[%emt 0:00:00]} Bxf2 {[%emt 0:00:00]} 31. Rxd2 {[%emt 0:00:00]} Bc5 {[%emt 0:01:00]} 32. Bxb7 {[%emt 0:00:00]} Rae8 {[%emt 0:04:04]} 33. Nxh4 {[%emt 0:04:30]} Re1+ {[%emt 0:00:30]} 34. Kg2 {[%emt 0:00:00]} Rg1+ {[%emt 0:01:07]} 35. Kf3 {[%emt 0:00:00]} Rh8 {[%emt 0:09:55]} 36. Nf5 {[%emt 0:01:30]} Rf1+ {[%emt 0:02:09]} 37. Kg4 {[%emt 0:00:30]} g6 {[%emt 0:00:45]} 38. Ng3 {[%emt 0:00:30]} Rf2 {[%emt 0:00:21]} 39. Rxf2 {[%emt 0:08:30]} Bxf2 {[%emt 0:00:06]} 40. Nf1 {[%emt 0:00:30]} Kf6 {[%emt 0:00:56]} 41. Bd5 {[%emt 0:02:30]} Rh4+ {[%emt 0:03:26]} 42. Kf3 {[%emt 0:00:00]} Bc5 {[%emt 0:00:20]} 43. Ng3 {[%emt 0:01:00]} Bd4 {[%emt 0:01:03]} 44. b4 {[%emt 0:02:30]} Rxh2 {[%emt 0:00:24]} 45. c5 {[%emt 0:00:30]} Bb2 {[%emt 0:01:02]} 46. Bb3 {[%emt 0:04:30]} Ba3 {[%emt 0:00:44]} 47. b5 {[%emt 0:00:30]} Ke7 {[%emt 0:00:27]} 48. Ne4 {[%emt 0:01:30]} Rh1 {[%emt 0:00:20]} 49. b6 {[%emt 0:01:30]} axb6 {[%emt 0:00:57]} 50. cxb6 {[%emt 0:00:00]} Kd7 {[%emt 0:00:13]} 51. Ba4+ {[%emt 0:02:00]} Kc8 {[%emt 0:00:31]} 52. Bc6 {[%emt 0:00:30]} Rb1 {[%emt 0:00:15]} 53. b7+ {[%emt 0:00:30]} Kc7 {[%emt 0:00:04]} 54. Nc3 {[%emt 0:03:30]} Kxc6 {[%emt 0:00:30]} 55. Nxb1 {[%emt 0:00:30]} Bd6 {[%emt 0:00:44]} 56. Nd2 {[%emt 0:03:30]} Kxb7 {[%emt 0:00:39]} 57. Nc4 {[%emt 0:00:00]} Bc7 {[%emt 0:00:08]} 58. Ke4 {[%emt 0:03:11]} Kc6 {[%emt 0:01:12]} 59. Ne5+ {[%emt 0:00:58]} Kb5 {[%emt 0:00:51]} 60. Nxg6 {[%emt 0:00:14]} Ka4 {[%emt 0:00:09]} 61. f5 {[%emt 0:00:29]} Ka3 {[%emt 0:00:20]} 62. f6 {[%emt 0:01:05]} Bd6 {[%emt 0:00:38]} 63. Kd5 {[%emt 0:01:13]} Bb4 {[%emt 0:00:18]} 64. f7 {[%emt 0:00:00]} 1-0

[Event "Turkish Cup 2022"]
[Site "Sakarya"]
[Date "2022.03.30"]
[Round "9.23"]
[White "Colak, Tugay"]
[Black "Canbulan, Arda"]
[Result "1-0"]
[ECO "A45"]
[WhiteElo "1701"]
[BlackElo "1867"]
[Annotator "NA"]
[PlyCount "73"]
[EventDate "2022.03.25"]
[EventType "swiss"]
[EventCountry "TUR"]
[SourceTitle "playchess.com"]
[Source "ChessBase"]
[SourceQuality "1"]
[TimeControl "5400+30"]

1. d4 {[%emt 0:01:00]} Nf6 {[%emt 0:01:00]} 2. Bg5 {[%emt 0:00:30]} Ne4 {[%emt 0:00:30]} 3. Bf4 {[%emt 0:01:30]} c5 {[%emt 0:00:30]} 4. f3 {[%emt 0:00:30]} Nf6 {[%emt 0:00:30]} 5. d5 {[%emt 0:00:30]} Qb6 {[%emt 0:00:30]} 6. b3 {[%emt 0:02:30]} Qb4+ {[%emt 0:01:30]} 7. Bd2 {[%emt 0:03:30]} Qd4 {[%emt 0:00:30]} 8. Nc3 {[%emt 0:04:30]} Nxd5 {[%emt 0:07:30]} 9. Nb5 {[%emt 0:11:30]} Qe5 {[%emt 0:04:30]} 10. c4 {[%emt 0:11:30]} a6 {[%emt 0:05:30]} 11. cxd5 {[%emt 0:07:30]} axb5 {[%emt 0:00:30]} 12. e4 {[%emt 0:00:00]} b4 {[%emt 0:08:30]} 13. Rc1 {[%emt 0:14:00]} e6 {[%emt 0:14:30]} 14. Bxb4 {[%emt 0:03:30]} exd5 {[%emt 0:10:30]} 15. Bxc5 {[%emt 0:06:30]} Bxc5 {[%emt 0:01:30]} 16. Rxc5 {[%emt 0:00:30]} O-O {[%emt 0:00:30]} 17. a4 {[%emt 0:05:30]} d6 {[%emt 0:02:30]} 18. Rxd5 {[%emt 0:00:30]} Qc3+ {[%emt 0:02:30]} 19. Kf2 {[%emt 0:02:30]} Be6 {[%emt 0:00:30]} 20. Ne2 {[%emt 0:03:54]} Qb2 {[%emt 0:01:30]} 21. Rb5 {[%emt 0:04:27]} Nc6 {[%emt 0:00:30]} 22. Qc1 {[%emt 0:01:45]} Qf6 {[%emt 0:00:30]} 23. Nf4 {[%emt 0:01:32]} Nd4 {[%emt 0:01:30]} 24. Nh5 {[%emt 0:06:23]} Qe7 {[%emt 0:02:30]} 25. Qc3 {[%emt 0:00:57]} g6 {[%emt 0:01:30]} 26. Qxd4 {[%emt 0:00:58]} gxh5 {[%emt 0:00:00]} 27. Rxh5 {[%emt 0:01:11]} Bxb3 {[%emt 0:00:00]} 28. a5 {[%emt 0:01:22]} Rfc8 {[%emt 0:02:30]} 29. Bd3 {[%emt 0:00:23]} Rc5 {[%emt 0:02:30]} 30. e5 {[%emt 0:02:44]} Rxe5 {[%emt 0:01:30]} 31. Qg4+ {[%emt 0:01:02]} Kf8 {[%emt 0:00:00]} 32. Rxh7 {[%emt 0:00:24]} Rg5 {[%emt 0:00:00]} 33. Rh8+ {[%emt 0:00:58]} Kg7 {[%emt 0:00:30]} 34. Qd4+ {[%emt 0:00:00]} Re5 {[%emt 0:00:30]} 35. Rxa8 {[%emt 0:00:00]} f6 {[%emt 0:00:30]} 36. Qg4+ {[%emt 0:00:09]} Rg5 {[%emt 0:00:30]} 37. Qe4 {[%emt 0:00:09]} 1-0

[Event "Turkish Cup 2022"]
[Site "Sakarya"]
[Date "2022.03.30"]
[Round "9.25"]
[White "Atayman, Evren"]
[Black "Unesi, Erdal"]
[Result "1-0"]
[ECO "B40"]
[WhiteElo "1662"]
[BlackElo "1861"]
[Annotator "NA"]
[PlyCount "65"]
[EventDate "2022.03.25"]
[EventType "swiss"]
[EventCountry "TUR"]
[SourceTitle "playchess.com"]
[Source "ChessBase"]
[SourceQuality "1"]
[TimeControl "5400+30"]

1. e4 {[%emt 0:01:00]} c5 {[%emt 0:02:00]} 2. Nf3 {[%emt 0:00:30]} e6 {[%emt 0:00:30]} 3. d3 {[%emt 0:00:30]} Nc6 {[%emt 0:00:30]} 4. g3 {[%emt 0:00:30]} Nf6 {[%emt 0:01:30]} 5. Bg2 {[%emt 0:00:30]} g6 {[%emt 0:04:30]} 6. O-O {[%emt 0:13:30]} Bg7 {[%emt 0:01:30]} 7. c3 {[%emt 0:00:30]} O-O {[%emt 0:00:30]} 8. e5 {[%emt 0:01:30]} Nd5 {[%emt 0:08:30]} 9. c4 {[%emt 0:13:30]} Nde7 {[%emt 0:01:30]} 10. Re1 {[%emt 0:00:30]} d6 {[%emt 0:01:30]} 11. Bf4 {[%emt 0:00:30]} dxe5 {[%emt 0:08:30]} 12. Nxe5 {[%emt 0:00:30]} Qb6 {[%emt 0:01:30]} 13. Qd2 {[%emt 0:02:30]} Rd8 {[%emt 0:13:30]} 14. Nc3 {[%emt 0:01:30]} Qa5 {[%emt 0:15:30]} 15. Nxc6 {[%emt 0:04:30]} Nxc6 {[%emt 0:00:30]} 16. Bxc6 {[%emt 0:00:30]} bxc6 {[%emt 0:00:30]} 17. Be5 {[%emt 0:00:30]} f6 {[%emt 0:00:30]} 18. Bf4 {[%emt 0:01:30]} e5 {[%emt 0:00:30]} 19. Bh6 {[%emt 0:00:30]} Bf5 {[%emt 0:03:30]} 20. Bxg7 {[%emt 0:00:30]} Kxg7 {[%emt 0:00:30]} 21. Re3 {[%emt 0:01:30]} Qb4 {[%emt 0:08:30]} 22. Qe2 {[%emt 0:00:30]} Rab8 {[%emt 0:00:30]} 23. g4 {[%emt 0:01:30]} Be6 {[%emt 0:04:30]} 24. Rxe5 {[%emt 0:07:30]} Qxb2 {[%emt 0:07:20]} 25. Qxb2 {[%emt 0:00:30]} Rxb2 {[%emt 0:00:34]} 26. Rxe6 {[%emt 0:00:30]} Rxd3 {[%emt 0:00:19]} 27. Na4 {[%emt 0:00:30]} Rc2 {[%emt 0:01:22]} 28. Nxc5 {[%emt 0:00:30]} Rdd2 {[%emt 0:05:23]} 29. Ne4 {[%emt 0:03:30]} Re2 {[%emt 0:01:32]} 30. Rd1 {[%emt 0:00:30]} Rxc4 {[%emt 0:01:40]} 31. Rd7+ {[%emt 0:00:30]} Kh6 {[%emt 0:00:18]} 32. g5+ {[%emt 0:00:30]} fxg5 {[%emt 0:02:54]} 33. Nf6 {[%emt 0:00:30]} 1-0

[Event "Turkish Cup 2022"]
[Site "Sakarya"]
[Date "2022.03.30"]
[Round "9.26"]
[White "Gozubuyukoglu, Selami"]
[Black "Anacak, Hasan Gunes"]
[Result "0-1"]
[ECO "B50"]
[WhiteElo "1747"]
[BlackElo "1798"]
[Annotator "NA"]
[PlyCount "84"]
[EventDate "2022.03.25"]
[EventType "swiss"]
[EventCountry "TUR"]
[SourceTitle "playchess.com"]
[Source "ChessBase"]
[SourceQuality "1"]
[TimeControl "5400+30"]

1. e4 {[%emt 0:01:00]} c5 {[%emt 0:03:00]} 2. Nf3 {[%emt 0:00:30]} d6 {[%emt 0:00:30]} 3. c3 {[%emt 0:00:30]} Nf6 {[%emt 0:00:30]} 4. Be2 {[%emt 0:00:30]} g6 {[%emt 0:01:30]} 5. O-O {[%emt 0:01:30]} Bg7 {[%emt 0:00:30]} 6. Bb5+ {[%emt 0:02:30]} Bd7 {[%emt 0:18:30]} 7. Bxd7+ {[%emt 0:00:30]} Nbxd7 {[%emt 0:08:30]} 8. Re1 {[%emt 0:00:30]} O-O {[%emt 0:03:30]} 9. d4 {[%emt 0:02:30]} Qc7 {[%emt 0:16:30]} 10. e5 {[%emt 0:10:30]} dxe5 {[%emt 0:03:30]} 11. dxe5 {[%emt 0:02:30]} Ng4 {[%emt 0:00:30]} 12. e6 {[%emt 0:02:30]} fxe6 {[%emt 0:01:30]} 13. h3 {[%emt 0:06:30]} Nge5 {[%emt 0:09:30]} 14. Ng5 {[%emt 0:01:30]} Qc6 {[%emt 0:02:30]} 15. Qe2 {[%emt 0:06:30]} h6 {[%emt 0:02:30]} 16. Ne4 {[%emt 0:00:30]} c4 {[%emt 0:02:30]} 17. Nbd2 {[%emt 0:07:30]} Nd3 {[%emt 0:00:30]} 18. Rf1 {[%emt 0:00:30]} N7e5 {[%emt 0:01:30]} 19. Ng3 {[%emt 0:02:30]} b5 {[%emt 0:01:30]} 20. Nde4 {[%emt 0:02:30]} Nxc1 {[%emt 0:02:01]} 21. Raxc1 {[%emt 0:02:30]} Nd3 {[%emt 0:00:15]} 22. Rc2 {[%emt 0:00:30]} Rf4 {[%emt 0:01:08]} 23. Qe3 {[%emt 0:01:30]} Be5 {[%emt 0:03:56]} 24. f3 {[%emt 0:01:30]} Bc7 {[%emt 0:00:37]} 25. Kh1 {[%emt 0:00:30]} Bb6 {[%emt 0:01:20]} 26. Qd2 {[%emt 0:02:30]} Raf8 {[%emt 0:02:14]} 27. Rd1 {[%emt 0:08:30]} h5 {[%emt 0:01:05]} 28. Nxh5 {[%emt 0:08:30]} gxh5 {[%emt 0:03:10]} 29. g3 {[%emt 0:02:30]} R4f7 30. Qg5+ Rg7 {[%emt 0:01:56]} 31. Qxh5 {[%emt 0:02:00]} Rf5 {[%emt 0:00:05]} 32. Qh4 {[%emt 0:00:30]} Rxf3 {[%emt 0:01:02]} 33. Kh2 {[%emt 0:01:30]} Qd5 {[%emt 0:05:27]} 34. Re2 {[%emt 0:00:30]} Qf5 {[%emt 0:00:54]} 35. Rdd2 {[%emt 0:07:23]} Rf1 {[%emt 0:01:35]} 36. Rg2 {[%emt 0:00:52]} Be3 {[%emt 0:01:22]} 37. Rde2 {[%emt 0:01:23]} Bc1 {[%emt 0:00:46]} 38. Nd6 {[%emt 0:06:38]} exd6 {[%emt 0:00:41]} 39. Qd8+ {[%emt 0:01:56]} Qf8 {[%emt 0:00:08]} 40. Qa5 {[%emt 0:00:14]} Qe8 {[%emt 0:01:10]} 41. Qa6 {[%emt 0:00:16]} Rh7 {[%emt 0:00:00]} 42. Qxd6 {[%emt 0:00:47]} Rxh3+ {[%emt 0:00:05]} 0-1

[Event "Turkish Cup 2022"]
[Site "Sakarya"]
[Date "2022.03.30"]
[Round "9.27"]
[White "Demirag, Gokhan"]
[Black "Unsal, Gorkem"]
[Result "1/2-1/2"]
[ECO "E18"]
[WhiteElo "1946"]
[BlackElo "1672"]
[Annotator "NA"]
[PlyCount "65"]
[EventDate "2022.03.25"]
[EventType "swiss"]
[EventCountry "TUR"]
[SourceTitle "playchess.com"]
[Source "ChessBase"]
[SourceQuality "1"]
[TimeControl "5400+30"]

1. Nf3 {[%emt 0:01:00]} Nf6 {[%emt 0:01:00]} 2. c4 {[%emt 0:00:00]} e6 {[%emt 0:01:30]} 3. d4 {[%emt 0:00:00]} b6 {[%emt 0:00:30]} 4. g3 {[%emt 0:00:30]} Bb7 {[%emt 0:00:30]} 5. Bg2 {[%emt 0:01:30]} Be7 {[%emt 0:03:30]} 6. O-O {[%emt 0:00:30]} O-O {[%emt 0:00:30]} 7. Nc3 {[%emt 0:00:30]} d5 {[%emt 0:00:30]} 8. Ne5 {[%emt 0:00:00]} Nbd7 {[%emt 0:07:30]} 9. f4 {[%emt 0:03:00]} c5 {[%emt 0:06:30]} 10. e3 {[%emt 0:01:30]} Rc8 {[%emt 0:03:30]} 11. cxd5 {[%emt 0:04:30]} exd5 {[%emt 0:00:30]} 12. Bd2 {[%emt 0:00:30]} Ne4 {[%emt 0:08:30]} 13. Nxe4 {[%emt 0:03:30]} dxe4 {[%emt 0:00:30]} 14. Bc3 {[%emt 0:01:30]} Nf6 {[%emt 0:06:30]} 15. Qb1 {[%emt 0:07:30]} cxd4 {[%emt 0:05:30]} 16. Bxd4 {[%emt 0:00:30]} Bc5 {[%emt 0:04:30]} 17. Rd1 {[%emt 0:02:30]} Qe7 {[%emt 0:10:30]} 18. b3 {[%emt 0:21:30]} Rc7 {[%emt 0:05:30]} 19. Qb2 {[%emt 0:02:30]} Rd8 {[%emt 0:05:30]} 20. Bxc5 {[%emt 0:01:30]} Rxc5 {[%emt 0:01:30]} 21. Rac1 {[%emt 0:03:30]} h5 {[%emt 0:02:30]} 22. Bf1 {[%emt 0:04:30]} Nd5 {[%emt 0:04:30]} 23. Qe2 {[%emt 0:02:30]} h4 {[%emt 0:00:35]} 24. Rxc5 {[%emt 0:07:30]} Qxc5 {[%emt 0:01:32]} 25. Rd4 {[%emt 0:00:30]} hxg3 {[%emt 0:03:19]} 26. hxg3 {[%emt 0:00:30]} Rd6 {[%emt 0:00:49]} 27. Qc4 {[%emt 0:02:30]} Qa5 {[%emt 0:03:17]} 28. Qc1 {[%emt 0:08:30]} Qxa2 {[%emt 0:04:09]} 29. Rxd5 {[%emt 0:06:23]} Rxd5 {[%emt 0:00:36]} 30. Qc7 {[%emt 0:00:39]} Rxe5 {[%emt 0:01:28]} 31. fxe5 {[%emt 0:07:34]} Qxb3 {[%emt 0:00:30]} 32. Qb8+ {[%emt 0:00:49]} Kh7 {[%emt 0:00:30]} 33. Qxb7 {[%emt 0:00:30]} 1/2-1/2

[Event "Turkish Cup 2022"]
[Site "Sakarya"]
[Date "2022.03.30"]
[Round "9.28"]
[White "Sakmak, Kutay"]
[Black "Ozcan, Kadir Kutay"]
[Result "1-0"]
[ECO "B76"]
[WhiteElo "1718"]
[BlackElo "1878"]
[Annotator "NA"]
[PlyCount "61"]
[EventDate "2022.03.25"]
[EventType "swiss"]
[EventCountry "TUR"]
[SourceTitle "playchess.com"]
[Source "ChessBase"]
[SourceQuality "1"]
[TimeControl "5400+30"]

1. e4 {[%emt 0:04:00]} c5 {[%emt 0:05:00]} 2. Nf3 {[%emt 0:00:30]} d6 {[%emt 0:00:30]} 3. d4 {[%emt 0:00:30]} cxd4 {[%emt 0:00:30]} 4. Nxd4 {[%emt 0:00:30]} Nf6 {[%emt 0:00:30]} 5. Nc3 {[%emt 0:00:30]} g6 {[%emt 0:01:30]} 6. Be3 {[%emt 0:00:00]} Bg7 {[%emt 0:00:30]} 7. f3 {[%emt 0:00:00]} Nc6 {[%emt 0:00:30]} 8. Qd2 {[%emt 0:00:30]} O-O {[%emt 0:00:00]} 9. g4 {[%emt 0:00:30]} Bxg4 {[%emt 0:05:00]} 10. fxg4 {[%emt 0:02:30]} Nxg4 {[%emt 0:02:30]} 11. Nxc6 {[%emt 0:02:30]} bxc6 {[%emt 0:00:00]} 12. Be2 {[%emt 0:01:30]} Nxe3 {[%emt 0:00:00]} 13. Qxe3 {[%emt 0:00:00]} Rb8 {[%emt 0:02:30]} 14. Rb1 {[%emt 0:10:00]} Qa5 {[%emt 0:00:30]} 15. O-O {[%emt 0:01:30]} Rb4 {[%emt 0:04:30]} 16. Kh1 {[%emt 0:03:30]} Rfb8 {[%emt 0:00:30]} 17. Qf3 {[%emt 0:08:30]} Bf6 {[%emt 0:04:30]} 18. b3 {[%emt 0:13:30]} Qc5 {[%emt 0:04:30]} 19. Bc4 {[%emt 0:03:30]} a5 {[%emt 0:05:30]} 20. Rbe1 {[%emt 0:00:30]} Qe5 {[%emt 0:12:30]} 21. Nd1 {[%emt 0:02:30]} h5 {[%emt 0:01:30]} 22. Nf2 {[%emt 0:02:30]} R4b7 {[%emt 0:00:30]} 23. Nd3 {[%emt 0:00:30]} Qc3 {[%emt 0:00:30]} 24. e5 {[%emt 0:02:30]} dxe5 {[%emt 0:00:30]} 25. Bxf7+ {[%emt 0:00:30]} Kg7 {[%emt 0:01:30]} 26. Bxg6 {[%emt 0:00:30]} Qxc2 {[%emt 0:01:30]} 27. Be4 {[%emt 0:00:30]} Qxa2 {[%emt 0:01:30]} 28. Nxe5 {[%emt 0:04:30]} Rxb3 {[%emt 0:05:30]} 29. Qxh5 {[%emt 0:00:30]} Rb2 {[%emt 0:01:30]} 30. Qg6+ {[%emt 0:00:30]} Kf8 {[%emt 0:00:30]} 31. Nd7# {[%emt 0:00:30]} 1-0